{"text_format":"3","workbook":"xlsx","n_sheets":8,"sheets":["Информация о Чемпионате","Общая инфраструктура","Рабочее место конкурсантов","Расходные материалы","Лист3","Лист2","Лист1","Личный инструмент конкурсанта"],"read":"whole","date_system":"1900"}

{"sheet":"Информация о Чемпионате","index":0,"n_rows":23,"n_cols":2,"rows_kept":23}
[]
[]
["Компетенция","Хлебопечение"]
["Наименование этапа Чемпионата","Региональный чемпионата по профессиональному мастерству \"Профессионалы\" в  2026 г."]
["Субъект РФ","Иркутская область"]
["Базовая организация расположения конкурсной площадки","Государственное бюджетное профессиональное образовательное учреждение Иркутской области \"Братский торгово-технологический техникум\""]
["Адрес конкурсной площадки"," город Братск, жилой район Гидростроитель, улица Енисейская, дом 66/7"]
["Даты проведения","с 09.02.2026 по 13.02.2026"]
["Главный эксперт","Баранецкис Олеся Геннадьевна"]
["Электронная почта ГЭ","ms.olesiy2012@mail.ru"]
["Телефон ГЭ",89834006240]
["Технический эксперт","Кашуба Олег Павлович "]
["Электронная почта ТЭ"," oleg.kashuba.02@bk.ru"]
["Телефон ТЭ",89041357449]
["Количество конкурсантов (команд)",5]
["Количество рабочих мест",5]
["Количество экспертов (в т.ч. с ГЭ)",8]
[]
[]
["ЭН - эксперт-наставник"]
["ГЭ - главный эксперт","Баранецкис Олеся Геннадьевна"]
["ИЭ - индустриальный эксперт","Паранюк Ольга Владимировна"]
["ТАП - технический администратор площадки","Кашуба Олег Павлович "]

{"sheet":"Общая инфраструктура","index":1,"n_rows":121,"n_cols":8,"rows_kept":121,"merged":[[0,0,0,7],[1,0,1,7],[2,0,2,7],[3,0,3,7],[4,0,4,7],[5,0,5,7],[6,0,6,1],[6,2,6,7],[7,0,7,2],[7,3,7,7],[8,0,8,1],[8,2,8,7],[9,0,9,1],[9,2,9,3],[9,4,9,5],[9,6,9,7],[10,0,10,1],[10,2,10,3],[10,4,10,5],[10,6,10,7],[11,0,11,1],[11,2,11,7],[12,0,12,1],[12,2,12,7],[13,0,13,1],[13,2,13,7],[14,0,14,1],[14,2,14,7],[15,0,15,7],[16,0,16,7],[17,0,17,7],[18,0,18,7],[19,0,19,7],[20,0,20,7],[21,0,21,7],[22,0,22,7],[23,0,23,7],[24,0,24,7],[38,0,38,7],[39,0,39,7],[40,0,40,7],[41,0,41,7],[42,0,42,7],[43,0,43,7],[44,0,44,7],[45,0,45,7],[46,0,46,7],[47,0,47,7],[53,0,53,7],[54,0,54,7],[55,0,55,7],[56,0,56,7],[57,0,57,7],[58,0,58,7],[59,0,59,7],[60,0,60,7],[61,0,61,7],[62,0,62,7],[77,0,77,7],[82,0,82,7],[83,0,83,7],[84,0,84,7],[85,0,85,7],[86,0,86,7],[87,0,87,7],[88,0,88,7],[89,0,89,7],[90,0,90,7],[91,0,91,7],[102,0,102,7],[103,0,103,7],[104,0,104,7],[105,0,105,7],[106,0,106,7],[107,0,107,7],[108,0,108,7],[109,0,109,7],[110,0,110,7],[111,0,111,7],[112,0,112,7]]}
["ПРОЕКТ"]
["Инфраструктурный лист для оснащения конкурсной площадки"]
[{"$f":"'Информация о Чемпионате'!B4","v":"Региональный чемпионата по профессиональному мастерству \"Профессионалы\" в  2026 г."}]
["по компетенции"]
[{"$f":"'Информация о Чемпионате'!B3","v":"Хлебопечение"}]
["Основная информация о конкурсной площадке:"]
["Субъект Российской Федерации:",null,{"$f":"'Информация о Чемпионате'!B5","v":"Иркутская область"}]
["Базовая организация расположения конкурсной площадки:",null,null,{"$f":"'Информация о Чемпионате'!B6","v":"Государственное бюджетное профессиональное образовательное учреждение Иркутской области \"Братский торгово-технологический техникум\""}]
["Адрес базовой организации: ",null,{"$f":"'Информация о Чемпионате'!B7","v":" город Братск, жилой район Гидростроитель, улица Енисейская, дом 66/7"}]
["Главный эксперт: ",null,{"$f":"'Информация о Чемпионате'!B9","v":"Баранецкис Олеся Геннадьевна"},null,{"$f":"'Информация о Чемпионате'!B10","v":"ms.olesiy2012@mail.ru"},null,{"$f":"'Информация о Чемпионате'!B11","v":89834006240}]
["Технический эксперт: ",null,{"$f":"'Информация о Чемпионате'!B12","v":"Кашуба Олег Павлович "},null,{"$f":"'Информация о Чемпионате'!B13","v":" oleg.kashuba.02@bk.ru"},null,{"$f":"'Информация о Чемпионате'!B14","v":89041357449}]
["Количество экспертов (в т.ч. с главным экспертом): ",null,{"$f":"'Информация о Чемпионате'!B17","v":8}]
["Количество конкурсантов (команд): ",null,{"$f":"'Информация о Чемпионате'!B15","v":5}]
["Количество рабочих мест: ",null,{"$f":"'Информация о Чемпионате'!B16","v":5}]
["Даты проведения: ",null,{"$f":"'Информация о Чемпионате'!B8","v":"с 09.02.2026 по 13.02.2026"}]
["Общая зона конкурсной площадки (оборудование, инструмент, мебель)"]
["Требования к обеспечению зоны (коммуникации, площадь, сети, количество рабочих мест и др.): "]
["Площадь зоны: не менее 30 кв.м."]
["Освещение: Допустимо верхнее искусственное освещение ( не менее 500 люкс) "]
["Интернет : Подключение  ноутбуков к беспроводному интернету (с возможностью подключения к проводному интернету) \t"]
["Электричество: подключение к сети 220 Вольт и 380 Вольт"]
["Контур заземления для электропитания и сети слаботочных подключений (при необходимости) : требуется"]
["Покрытие пола: плитка/каменное покрытие на всю зону"]
["Подведение/ отведение ГХВС (при необходимости): требуется"]
["Подведение сжатого воздуха (при необходимости): не требуется"]
["№","Наименование ","Краткие (рамочные) технические характеристики","Вид","Количество","Единица измерения","Итоговое количество","Рекомендации представителей индустрии (указывается конкретное оборудование)"]
[1,"Морозильный шкаф"," 10-и уровневый 10хGN-1/1 \nили 10х600х400 мм, t (от +90 \nдо -35°С, \n0,24 м3, охлаждение 25 кг/90 \nмин, заморозка 25 кг/240 мин, \n745х898х1423 мм)","Оборудование",1,"шт",1]
[2,"Контейнер для сыпучих продуктов с крышкой на колесах","Объем 70-90 литров Для сыпучих продуктов с \nкрышкой на колесах","Оборудование",3,"шт",3]
[3,"Часы настенные","Электронного типа","Оборудование",1,"шт",1]
[4,"Бумага 500 листов (на всех)","Критически важные характеристики позиции отсутствуют","Канцелярские принадлежности",10,"пачка 500 листов",10]
[5,"Ручка шариковая","Критически важные характеристики позиции отсутствуют","Канцелярские принадлежности",15,"м",15]
[6,"Степлер со скобами (на всех)","Критически важные характеристики позиции отсутствуют","Канцелярские принадлежности",1,"м",1]
[7,"Ножницы (на всех)","Критически важные характеристики позиции отсутствуют","Канцелярские принадлежности",5,"шт",5]
[8,"Флешка (на всех)","Критически важные характеристики позиции отсутствуют","Канцелярские принадлежности",1,"шт",1]
[9,"Пластиковые  папки конверты цветные на каждого участника","Критически важные характеристики позиции отсутствуют","Канцелярские принадлежности",1,"упак",1]
[10,"Скотч","Критически важные характеристики позиции отсутствуют","Канцелярские принадлежности",1,"шт",1]
[11,"Линейка/рулетка на 100 см.","Критически важные характеристики позиции отсутствуют","Канцелярские принадлежности",1,"шт",1]
[12,"Планшет для бумаг с зажимом на каждого эксперта","Критически важные характеристики позиции отсутствуют","Канцелярские принадлежности",6,"шт",6]
["Комната Конкурсантов (оборудование, инструмент, мебель) (по количеству конкурсантов)"]
["Требования к обеспечению зоны (коммуникации, площадь, сети, количество рабочих мест и др.): "]
["Площадь зоны: не менее 12 кв.м."]
["Освещение: Допустимо верхнее искусственное освещение ( не менее 300 люкс)"]
["Интернет : Подключение  ноутбуков к беспроводному интернету (с возможностью подключения к проводному интернету) \t"]
["Электричество: подключение к сети  220 Вольт"]
["Контур заземления для электропитания и сети слаботочных подключений (при необходимости) : не требуется"]
["Покрытие пола: плитка/каменное покрытие на всю зону"]
["Подведение/ отведение ГХВС (при необходимости) : не требуется"]
["Подведение сжатого воздуха (при необходимости): не требуется"]
["№","Наименование ","Краткие (рамочные) технические характеристики","Вид","Количество","Единица измерения","Итоговое количество","Рекомендации представителей индустрии (указывается конкретное оборудование)"]
[1,"Вешалка","С плечиками на каждого участника","Мебель",1,"шт",1]
[2,"Стол","Критически важные характеристики позиции отсутствуют","Мебель",1,"шт",2]
[3,"Стул","Критически важные характеристики позиции отсутствуют","Мебель",1,"шт",5]
[4,"Мусорная корзина","Критически важные характеристики позиции отсутствуют","Мебель",1,"шт",1]
["Комната Экспертов (включая комнату Главного эксперта) (оборудование, инструмент, мебель) (по количеству экспертов)"]
["Требования к обеспечению зоны (коммуникации, площадь, сети, количество рабочих мест и др.): "]
["Площадь зоны: не менее 13 кв.м."]
["Освещение: Допустимо верхнее искусственное освещение ( не менее 300 люкс)"]
["Интернет : Подключение  ноутбуков к беспроводному интернету (с возможностью подключения к проводному интернету) \t"]
["Электричество: подключение к сети  220 Вольт"]
["Контур заземления для электропитания и сети слаботочных подключений (при необходимости) : не требуется"]
["Покрытие пола: плитка/каменное покрытие на всю зону"]
["Подведение/ отведение ГХВС (при необходимости) : не требуется"]
["Подведение сжатого воздуха (при необходимости): не требуется"]
["№","Наименование ","Краткие (рамочные) технические характеристики","Вид","Количество","Единица измерения","Итоговое количество","Рекомендации представителей индустрии (указывается конкретное оборудование)"]
[1,"Корзина для мусора","Критически важные характеристики позиции отсутствуют","Мебель",1,"шт",1]
[2,"Стол переговорный","Критически важные характеристики позиции отсутствуют","Мебель",5,"шт",5]
[3,"Стул ","Критически важные характеристики позиции отсутствуют","Мебель",10,"шт",10]
[4,"Вешалка напольная","С плечиками на каждого эксперта","Мебель",1,"шт",1]
[5,"МФУ (принтер и сканер)","Лазерное, черно-белая печать, \nдвухсторонняя","Обрудование ИТ",1,"шт",1]
[6,"Ноутбук"," ядра: 6 + 8 х 2.3 ГГц, RAM 8 \nГБ, SSD 512 ГБ, ОЗУ для \nноутбуков 4 ГБ","Обрудование ИТ",1,"шт",1]
[7,"Сетевой удлинитель (на 5 розеток)","Розетки - 5, 15 А, 3300 Вт, \nкабель - 10 м","Оборудование",1,"шт",{"$f":"E71","v":1}]
[8,"Источник бесперебойного питания","Выходная мощность 1100 ВА / 660 Вт","Оборудование",1,"шт",1]
[9,"Операционная система","Операционная система обеспечивает:\n- Работоспособность всего программного обеспечения необходимого для выполнения конкурсного задания в полном объёме\n- Стабильное и бесперебойное подключение ПК эксперта к сети Ethernet","ПО",1,"шт",1]
[10,"Программное обеспечение для просмотра файлов в формате .pdf","ПО для просмотра файлов в формате .pdf обеспечивающее:\n- Открытие файлов в формате .pdf (как одностраничных, так и много страничных)\n- Возможность масштабировать и изменять ориентацию изображения","ПО",1,"шт",1]
[11,"Интернет-браузер","Интернет-браузер обеспечивает:\n- Быстрый и безопасный поиск информационных материалов \n- Давать возможность взаимодействия с системами обмена файлами (принятие и отправка файлов)\n- Доступ к e-mail участника\n- Давать возможность безопасно копировать текстовую и визуальную информацию из открытых источников","ПО",1,"шт",1]
[12,"Пакет офисных программ","Пакет офисных программ обеспечивающий:\n- Работу с текстовыми файлами в формате .doc, .docx\n- Работу с электронными таблицами в формате .xlsx и его интерпритации\n- Чтение и создание документов и их сохранение в выше указанных форматах\n- Работу с табличными данными, текстом, изображением","ПО",1,"шт",1]
[13,"Программное обеспечение для сканирования","Подходящее к установленному оборудованию","ПО",1,"шт",1]
[" "]
["№","Наименование ","Краткие (рамочные) технические характеристики","Вид","Количество","Единица измерения","Итоговое количество","Рекомендации представителей индустрии (указывается конкретное оборудование)"]
[1,"Аптечка","Универсальная.","Охрана труда",1,"шт",{"$f":"E80","v":1}]
[2,"Огнетушитель","Огнетушитель углекислотный ОУ\n1/ аналог","Охрана труда",1,"шт",{"$f":"E81","v":1}]
[3,"Кулер 19 л (холодная/горячая вода)","Кулер 19 л (холодная/горячая вода) \nVatten V09WE белый","Охрана труда",1,"шт",{"$f":"E82","v":1}]
["Складское помещение"]
["Требования к обеспечению зоны (коммуникации, площадь, сети, количество рабочих мест и др.): "]
["Площадь зоны: не менее 15 кв.м."]
["Освещение: Допустимо верхнее искусственное освещение (не менее 300 люкс) "]
["Интернет : Подключение  ноутбуков к беспроводному интернету (с возможностью подключения к проводному интернету) \t"]
["Электричество: подключение к сети  220 Вольт"]
["Контур заземления для электропитания и сети слаботочных подключений (при необходимости) : не требуется"]
["Покрытие пола: плитка/каменное покрытие на всю зону"]
["Подведение/ отведение ГХВС (при необходимости) : требуется"]
["Подведение сжатого воздуха (при необходимости): не требуется"]
["№","Наименование ","Краткие (рамочные) технические характеристики","Вид","Количество","Единица измерения","Итоговое количество","Рекомендации представителей индустрии (указывается конкретное оборудование)"]
[1,"Стол производственный разделочный","Габаритные размеры: 1200х600х850 мм, Материал столешницы: нержавеющая сталь","Оборудование",2,"шт",2]
[2,"Весы для простого взвешивания","Настольные, электронные","Оборудование",1,"шт",1]
[3,"Холодильный шкаф","Диапазон рабочих температур: 0…+6 °C","Оборудование",1,"шт",1]
[4,"Стеллаж сплошной разборный, 4х уровневый  ","Габаритные размеры: 800х500х1800 мм, Материал каркаса: нержавеющая сталь","Оборудование",3,"шт",3]
[5,"Ножи поварские ","На усмотрение организатора","Инвентарь",2,"шт",2]
[6,"Доска разделочная ","На усмотрение организатора","Инвентарь",3,"шт",3]
[7,"Корзина для мусора","На усмотрение организатора","Мебель",3,"шт",3]
[8,"Стол с моечной ванной ","На усмотрение организатора","Оборудование",1,"шт",1]
[9,"Смеситель для холодной и горячей воды","На усмотрение организатора","Оборудование",1,"шт",1]
["1. Зона для работ предусмотренных в вариативном модуле Г. Слоеные изделия"]
["Общая зона конкурсной площадки (оборудование, инструмент, мебель)"]
["Требования к обеспечению зоны (коммуникации, площадь, сети, количество рабочих мест и др.): "]
["Площадь зоны: не менее 10 кв.м. (допускается расположение в общей зоне конкурсной площадки)"]
["Освещение: Допустимо верхнее искусственное освещение"]
["Интернет : не требуется"]
["Электричество: подключения к сети  по 220 Вольт и 380 Вольт"]
["Контур заземления для электропитания и сети слаботочных подключений (при необходимости) : не требуется"]
["Покрытие пола: плитка на всю зону"]
["Подведение/ отведение ГХВС"]
["Подведение сжатого воздуха (при необходимости): не требуется"]
["№","Наименование ","Краткие (рамочные) технические характеристики","Вид","Количество","Единица измерения","Итоговое количество","Рекомендации представителей индустрии (указывается конкретное оборудование)"]
[1,"Шкаф шоковой заморозки ","10-и уровневый 10хGN-1/1 \nили 10х600х400 мм, t (от +90 \nдо -35°С, \n0,24 м3, охлаждение 25 кг/90 \nмин, заморозка 25 кг/240 мин, \n745х898х1423 мм)","Оборудование",1,"шт",1]
[2,"Машина для раскатки теста (1 шт. на 3 рабочих места)","GastroMIX ТЕСТОРАСКАТКА , Модель TDR-38OF, Напряжение, В220, Мощность кВт 0,75.","Оборудование",2,"шт",2]
[3,"Кондинционер  напольный/настенный","На усмотрение организатора","Оборудование",1,"шт",1]
[4,"Лёдогенератор ","На усмотрение организатора","Оборудование",1,"шт",1]
[5,"Стол производственный на профиле","производственный \n1400х600х850 мм, с сплошной \nполкой","Оборудование",2,"шт",2]
[6,"Стол с моечной ванной 1000х600х850 (правая-, левая)","М-3-0,3-0,53/1,49 MXM","Оборудование",2,"шт",2]
[7,"Смеситель для холодной и горячей воды","Одно отверстие на ванну, один \nповоротный рычаг включения","Оборудование",6,"шт",6]

{"sheet":"Рабочее место конкурсантов","index":2,"n_rows":67,"n_cols":8,"rows_kept":67,"merged":[[0,0,0,7],[1,0,1,7],[2,0,2,7],[3,0,3,7],[4,0,4,7],[5,0,5,7],[6,0,6,1],[6,2,6,7],[7,0,7,2],[7,3,7,7],[8,0,8,1],[8,2,8,7],[9,0,9,1],[9,2,9,3],[9,4,9,5],[9,6,9,7],[10,0,10,1],[10,2,10,3],[10,4,10,5],[10,6,10,7],[11,0,11,1],[11,2,11,7],[12,0,12,1],[12,2,12,7],[13,0,13,1],[13,2,13,7],[14,0,14,1],[14,2,14,7],[15,0,15,7],[16,0,16,7],[17,0,17,7],[18,0,18,7],[19,0,19,7],[20,0,20,7],[21,0,21,7],[22,0,22,7],[23,0,23,7],[24,0,24,7],[63,0,63,7]]}
["ПРОЕКТ"]
["Инфраструктурный лист для оснащения конкурсной площадки"]
[{"$f":"'Информация о Чемпионате'!B4","v":"Региональный чемпионата по профессиональному мастерству \"Профессионалы\" в  2026 г."}]
["по компетенции"]
[{"$f":"'Информация о Чемпионате'!B3","v":"Хлебопечение"}]
["Основная информация о конкурсной площадке:"]
["Субъект Российской Федерации:",null,{"$f":"'Информация о Чемпионате'!B5","v":"Иркутская область"}]
["Базовая организация расположения конкурсной площадки:",null,null,{"$f":"'Информация о Чемпионате'!B6","v":"Государственное бюджетное профессиональное образовательное учреждение Иркутской области \"Братский торгово-технологический техникум\""}]
["Адрес базовой организации: ",null,{"$f":"'Информация о Чемпионате'!B7","v":" город Братск, жилой район Гидростроитель, улица Енисейская, дом 66/7"}]
["Главный эксперт: ",null,{"$f":"'Информация о Чемпионате'!B9","v":"Баранецкис Олеся Геннадьевна"},null,{"$f":"'Информация о Чемпионате'!B10","v":"ms.olesiy2012@mail.ru"},null,{"$f":"'Информация о Чемпионате'!B11","v":89834006240}]
["Технический эксперт: ",null,{"$f":"'Информация о Чемпионате'!B12","v":"Кашуба Олег Павлович "},null,{"$f":"'Информация о Чемпионате'!B13","v":" oleg.kashuba.02@bk.ru"},null,{"$f":"'Информация о Чемпионате'!B14","v":89041357449}]
["Количество экспертов (в т.ч. с главным экспертом): ",null,{"$f":"'Информация о Чемпионате'!B17","v":8}]
["Количество конкурсантов (команд): ",null,{"$f":"'Информация о Чемпионате'!B15","v":5}]
["Количество рабочих мест: ",null,{"$f":"'Информация о Чемпионате'!B16","v":5}]
["Даты проведения: ",null,{"$f":"'Информация о Чемпионате'!B8","v":"с 09.02.2026 по 13.02.2026"}]
["Рабочее место Конкурсанта (основное оборудование, вспомогательное оборудование, инструмент (по количеству рабочих мест)"]
["Требования к обеспечению зоны (коммуникации, площадь, сети, количество рабочих мест и др.): "]
["Площадь зоны: не менее 15 кв.м."]
["Освещение: Допустимо верхнее искусственное освещение (не менее 500 люкс)"]
["Интернет : Подключение  ноутбуков к беспроводному интернету (с возможностью подключения к проводному интернету) \t"]
["Электричество: подключение к сети 220 Вольт и 380 Вольт"]
["Контур заземления для электропитания и сети слаботочных подключений (при необходимости) : требуется"]
["Покрытие пола: плитка/каменное покрытие на всю зону"]
["Подведение/ отведение ГХВС (при необходимости) : требуется"]
["Подведение сжатого воздуха (при необходимости): не требуется"]
["№","Наименование ","Краткие (рамочные) технические характеристики","Вид","Количество","Единица измерения","Итоговое количество","Рекомендации представителей индустрии (указывается конкретное оборудование)"]
[1,"Печь конвекционная","UNOX  XFT193 Электромеханическое ; \nТемпературный режим, от 50 \nдо 270 °С ; Мощность, 6.9 кВт, Противень: 600х400 мм.","Оборудование",1,"шт",{"$f":"C14*E27","v":5}]
[2,"Расстоечный шкаф","UNOX XEBDOC-01EU-DКоличество уровней:  12, Тип нагрева: Электрический нагрев, Тип управления: электронное, Противень: 600х400 мм. Пароувлажнение, расстойка \nпри температуре 45 °С","Оборудование",1,"шт",{"$f":"C14*E28","v":5}]
[3,"Подовая печь с пароувлажнением","UNOX XEBPC-08EU-B Тип управления: электронное, С каменным подом и \nавтоматической функцией \nподачи пара. Противень: 600х400мм","Оборудование",1,"шт",{"$f":"C14*E29","v":5}]
[4,"Противень  алюминевый 600х400  без  перфорации","Ширина (мм): 600, Глубина (мм): 400, Высота (мм): 15, Наличие перфорации: Нет","Инструмент",8,"шт",{"$f":"C14*E30","v":40}]
[5,"Противень алюминиевый  600x400 мм перфорированный","Ширина (мм): 600, Глубина (мм): 400, Высота (мм): 15, Наличие перфорации: Да","Инструмент",8,"шт",{"$f":"C14*E31","v":40}]
[null,"Стол производственный","Вспомогательный производственный 1400х600х850 мм, с сплошной полкой","Оборудование",1,"шт",5]
[6,"Стол производственный разделочный 1200х600х850","Габаритные размеры: 1800х600х850 мм, Материал столешницы: нержавеющая сталь","Оборудование",1,"шт",5]
[7,"Весы для простого взвешивания","Настольные, электронные. Для простого взвешивания, Наибольший предел взвешивания (кг): 5, Наименьший предел взвешивания (кг): 0,02, Дискретность (г): 1-2 Настольные, электронные\nПредел взвешивания (кг): 5, Тип питания: От сети","Оборудование",1,"шт",{"$f":"C14*E34","v":5}]
[8,"Плита индукционная","IP3500 D Тип питания: Электрический, Тип размещения: Настольный, Материал поверхности: Индукционный, Напряжение (В): 220. Двух конфорочная ","Оборудование",1,"шт",{"$f":"C14*E35","v":5}]
[9,"Планетарный миксер ","STARWIND SPM5183/1000 Вт, планетарный, \nскоростей - 6, корпус - пластик, \nнасадок - 3 шт крюк, венчик, лопатка (из нержавеющей стали). Напряжение: 220 В\nОбъем дежи: 5 л, \nМатериал дежи: Нержавеющая сталь, ","Оборудование",1,"шт",{"$f":"C14*E36","v":5}]
[10,"Спиральный тестомес двухскоростной\n","HURAKAN HKN-20SN2V Тип питания: Электрический. С фиксированной дежой, \nдвухскоростной Тип месильного органа: Спиральный, Производительность, кг/ч: 56, Объем дежи:  20 л., загрузка теста, кг: 17","Оборудование",1,"шт",{"$f":"C14*E37","v":5}]
[11,"стол-холодильник \n","ТМ2GN-G , Внутренний оъём 0,32 м3, Диапазон рабочих температур: 0…+6 °C","Оборудование",1,"шт",{"$f":"C14*E38","v":5}]
[14,"Тележка-шпилька СМК (сварн.,нерж., 14 уровней, размер листа 400х600)","Неразборная, вместимость: 14 противней 600х400,.GN1/1 задний ограничитель, 4 поворотных колеса, два колеса с фиксатором, Материал: нержавеющая сталь.","Инструмент",2,"шт",{"$f":"C14*E39","v":10}]
[15,"Презентационный  стол","На усмотрение организатора","Мебель",1,"шт",{"$f":"C14*E40","v":5}]
[16,"Стеллаж сплошной разборный, 4х уровневый  "," Материал каркаса: нержавеющая сталь  Материал полки: нержавеющая сталь Стеллаж кухонный разборный  \nгабариты ШхГхВ в мм:  \n1500*500*1800 полка сплошная \n5 уровня","Оборудование",1,"шт",{"$f":"C14*E41","v":5}]
[17,"Контейнеры с крышками  для  муки  20-25 л.","На усмотрение организатора","Инвентарь",1,"шт",{"$f":"C14*E42","v":5}]
[18,"Контейнеры с крышками  для  муки  7-10 л.","Пищевой пластиковый для \nхранения продуктов с \nодноцветной крышкой8л","Инвентарь",1,"шт",{"$f":"C14*E43","v":5}]
[19,"Пластиковые  контейнеры  для  теста на 10 л.","Пластиковые, для теста \n600*400*120  мм. ","Инвентарь",2,"шт",{"$f":"C14*E44","v":10}]
[20,"Пластиковые  контейнеры  для  теста  на 5 л.","Пластиковые, для \nтеста600*400*75 мм. ","Инвентарь",3,"шт",{"$f":"C14*E45","v":15}]
[21,"Миска глубокая из нержавеющей стали объем 750мл.","Глубокая из нержавеющей \nстали 1л.","Инвентарь",4,"шт",{"$f":"C14*E46","v":20}]
[22,"Мусорный контейнер 80-120 л ","С колесами и \nпедальюРазмеры:550х480х937 \nмм.","Инвентарь",1,"шт",{"$f":"C14*E47","v":5}]
[23,"Средства для уборки (набор совок и щетка)","размер метлы: 90x28 см; размер совка: 28x25,5 см;","Инвентарь",1,"шт",{"$f":"C14*E48","v":5}]
[24,"Нож универсальный 145 мм","Универсальные  145 мм","Инвентарь",1,"шт",{"$f":"C14*E49","v":5}]
[25,"Поднос столовый 450х355 мм с ручками"," светло-серый 29.3 см 2 см 19.3 \nсм","Инвентарь",6,"шт",{"$f":"C14*E50","v":30}]
[26,"Набор досок  разделочных пластиковых ( желтая, белая, красная, зелёная, синяя, коричневая)","Разделочная 600*400*180","Инвентарь",1,"шт",{"$f":"C14*E51","v":5}]
[27,"Доска деревянная","На усмотрение организатора","Инвентарь",1,"шт",{"$f":"$C$14*E52","v":5}]
[28,"Пластмассовый скребок  “Трапеция”","Пластмассовый скребок \n(19х13х13)","Инвентарь",2,"шт",{"$f":"C14*E53","v":10}]
[29,"Рукавица для пекарей с длинной манжетой","Прихватка - варежка термостойкая силиконовая с длинной манжетой","Инвентарь",1,"пара",{"$f":"C14*E54","v":5}]
[30,"Бутылка  для  молока на 3 л.","На усмотрение организатора","Инвентарь",1,"шт",{"$f":"C14*E55","v":5}]
[31,"Тазы  пластиковые на 2-4 л.","Пластиковый для пищевых продуктов 10л с крышкой","Инвентарь",2,"шт",{"$f":"C14*E56","v":10}]
[32,"Ковш с крышкой 1,8 л дл индукционной плиты","2 л для индукционной плиты с \nкрышкой","Инвентарь",2,"шт",{"$f":"C14*E57","v":10}]
[33,"Вилки  металлические","Нержавеющая сталь","Инвентарь",5,"шт",{"$f":"C14*E58","v":25}]
[34,"Ложки столовые","Нержавеющая сталь","Инвентарь",5,"шт",{"$f":"C14*E59","v":25}]
[35,"Совки для сыпучих продуктов","Терка четырехгранная \nнержавеющая сталь 25 см","Инвентарь",1,"шт",{"$f":"C14*E60","v":5}]
[36,"Терка  четырёхгранная ","Терка четырехгранная \nнержавеющая сталь 25 см","Инвентарь",1,"шт",{"$f":"C14*E61","v":5}]
[37,"Контейнер с крышкой 2 л.","Пищевой пластиковый для \nхранения продуктов с \nодноцветной крышкой2,1л","Инвентарь",1,"шт",{"$f":"C14*E62","v":5}]
[38,"Кружка  мерная  на  2 л.","Пластик, 1л.","Инвентарь",1," шт",{"$f":"C14*E63","v":5}]
["Охрана труда и техника безопасности"]
["№","Наименование ","Краткие (рамочные) технические характеристики","Вид","Количество","Единица измерения","Итоговое количество","Рекомендации представителей индустрии (указывается конкретное оборудование)"]
[1,"Спецодежда, спецобувь","Белый пекарский китель (допустим цветной кант), длинные черные брюки или брюки в мелкую черно-белую клетку, специализированную защитную обувь белого цвета с закрытым носком, фиксированной пяткой (кроксы запрещены), колпак или косынку, фартук белого цвета, носки белого цвета, закрывающие щиколотку","Охрана труда",1,"шт","конкурсант привозит с собой"]
[2,"Пекарские руковицы","Прихватка рукавица силиконовая, термостойкая, для горячего, набор-2 ш","Охрана труда",1,"шт",5]

{"sheet":"Расходные материалы","index":3,"n_rows":59,"n_cols":8,"rows_kept":59,"merged":[[0,0,0,7],[1,0,1,7],[2,0,2,7],[3,0,3,7],[4,0,4,7],[5,0,5,7],[6,0,6,1],[6,2,6,7],[7,0,7,2],[7,3,7,7],[8,0,8,1],[8,2,8,7],[9,0,9,1],[9,2,9,3],[9,4,9,5],[9,6,9,7],[10,0,10,1],[10,2,10,3],[10,4,10,5],[10,6,10,7],[11,0,11,1],[11,2,11,7],[12,0,12,1],[12,2,12,7],[13,0,13,1],[13,2,13,7],[14,0,14,1],[14,2,14,7],[15,0,15,7],[36,0,36,7],[56,0,56,7]]}
["ПРОЕКТ"]
["Инфраструктурный лист для оснащения конкурсной площадки"]
[{"$f":"'Информация о Чемпионате'!B4","v":"Региональный чемпионата по профессиональному мастерству \"Профессионалы\" в  2026 г."}]
["по компетенции"]
[{"$f":"'Информация о Чемпионате'!B3","v":"Хлебопечение"}]
["Основная информация о конкурсной площадке:"]
["Субъект Российской Федерации:",null,{"$f":"'Информация о Чемпионате'!B5","v":"Иркутская область"}]
["Базовая организация расположения конкурсной площадки:",null,null,{"$f":"'Информация о Чемпионате'!B6","v":"Государственное бюджетное профессиональное образовательное учреждение Иркутской области \"Братский торгово-технологический техникум\""}]
["Адрес базовой организации: ",null,{"$f":"'Информация о Чемпионате'!B7","v":" город Братск, жилой район Гидростроитель, улица Енисейская, дом 66/7"}]
["Главный эксперт: ",null,{"$f":"'Информация о Чемпионате'!B9","v":"Баранецкис Олеся Геннадьевна"},null,{"$f":"'Информация о Чемпионате'!B10","v":"ms.olesiy2012@mail.ru"},null,{"$f":"'Информация о Чемпионате'!B11","v":89834006240}]
["Технический эксперт: ",null,{"$f":"'Информация о Чемпионате'!B12","v":"Кашуба Олег Павлович "},null,{"$f":"'Информация о Чемпионате'!B13","v":" oleg.kashuba.02@bk.ru"},null,{"$f":"'Информация о Чемпионате'!B14","v":89041357449}]
["Количество экспертов (в т.ч. с главным экспертом): ",null,{"$f":"'Информация о Чемпионате'!B17","v":8}]
["Количество конкурсантов (команд): ",null,{"$f":"'Информация о Чемпионате'!B15","v":5}]
["Количество рабочих мест: ",null,{"$f":"'Информация о Чемпионате'!B16","v":5}]
["Даты проведения: ",null,{"$f":"'Информация о Чемпионате'!B8","v":"с 09.02.2026 по 13.02.2026"}]
["Рабочее место Конкурсанта (расходные материалы по количеству конкурсантов)"]
["№","Наименование ","Краткие (рамочные) технические характеристики","Вид","Количество","Единица измерения","Итоговое количество","Рекомендации представителей индустрии (указывается конкретное оборудование)"]
[1,"Пергамент жиронепроницаемый","Температура выпечки до 220 градусов - Не оставляет следов до и после выпечки - Может использоваться несколько раз. Размер листа: 60*40см","Расходный материал",10,"шт",{"$f":"E18*$C$13","v":50}]
[2,"Фольга рулон","29см х 10 м","Расходный материал",1,"рул",{"$f":"E19*$C$13","v":5}]
[3,"Вилки пластик","Материал пластик","Расходный материал","-","шт",100]
[4,"Тарелки пластик","Материал пластик d15-20","Расходный материал","-","шт",100]
[5,"Бумажные полотенца","В виде руллона, 2-х слойные","Расходный материал",3,"шт",15]
[6,"Губка для мытья посуды","Поролон + чистящий слой (аброзив)","Расходный материал",2,"шт",10]
[7,"Полотенца","Материал, х/ ткань","Расходный материал",3,"шт",15]
[8,"Салфетки бумажные","Однослойные, 24*24 см","Расходный материал","-","шт",200]
[9,"Контейнеры одноразовые для пищ продуктов","Объем 350 мл","Расходный материал",20,"шт",100]
[10,"Контейнеры одноразовые для пищ продуктов","Объем 500 мл","Расходный материал",20,"шт",100]
[11,"Контейнеры одноразовые для пищ продуктов","Объем 1000 мл","Расходный материал",10,"шт",50]
[12,"Стаканы одноразовые","Объем 200 мл","Расходный материал","-","шт",200]
[13,"Пакеты для мусора","Объем 30 л","Расходный материал",3,"шт",15]
[14,"Пакеты для мусора","Объем 200 л","Расходный материал",1,"шт",5]
[15,"Чашки пластиковые для горяч.","Объем 200 мл","Расходный материал","-","шт",200]
[16,"Дез средство","Для приготовления водного раствора","Расходный материал","-","шт",1]
[17,"Стрейч-пленка для ручной упаковки","29см x 20 м, 10 мкм","Расходный материал",2,"шт",10]
[18,"Вода","Вода питьевая, в бутыле 19 литров, для куллера","Расходный материал","-","шт",5]
[19,"Моющее средство для посуды","критически важные характеристики позиции отсутствуют","Расходный материал",1,"шт",5]
["Расходные материалы на всех конкурсантов и экспертов"]
["№","Наименование ","Краткие (рамочные) технические характеристики","Вид","Количество","Единица измерения","Итоговое количество","Рекомендации представителей индустрии (указывается конкретное оборудование)"]
[1,"Бумага А4","критически важные характеристики позиции отсутствуют","Канцелярские принадлежности",6,"пачка 500 листов",{"$f":"E39","v":6}]
[2,"Скотч малярный","критически важные характеристики позиции отсутствуют","Канцелярские принадлежности",1,"шт",1]
[3,"Скотч двусторонний","критически важные характеристики позиции отсутствуют","Канцелярские принадлежности",1,"шт",1]
[4,"Ручка шариковая","критически важные характеристики позиции отсутствуют","Канцелярские принадлежности",15,"шт",15]
[5,"Степлер со скобами","24/6","Канцелярские принадлежности",1,"шт",1]
[6,"Скрепки канцелярские","критически важные характеристики позиции отсутствуют","Канцелярские принадлежности",1,"упак",1]
[7,"Файлы А4","критически важные характеристики позиции отсутствуют","Канцелярские принадлежности",2,"упак",1]
[8,"Маркер черный","критически важные характеристики позиции отсутствуют","Канцелярские принадлежности",1,"шт",1]
[9,"Ножницы","критически важные характеристики позиции отсутствуют","Канцелярские принадлежности",2,"шт",1]
[10,"Линейка","не менее 30 см","Канцелярские принадлежности",2,"шт",1]
[11,"Дырокол для листов","толщина пробивки 30 листов","Канцелярские принадлежности",3,"шт",1]
[12,"Простой карандаш ","критически важные характеристики позиции отсутствуют","Канцелярские принадлежности",10,"шт",1]
[13,"Точилка для карандашей","критически важные характеристики позиции отсутствуют","Канцелярские принадлежности",1,"шт",1]
[14,"Нож канцелярский","критически важные характеристики позиции отсутствуют","Канцелярские принадлежности",2,"шт",1]
[15,"Планшет для бумаг с зажимом на каждого эксперта","критически важные характеристики позиции отсутствуют","Канцелярские принадлежности",10,"шт",10]
[16,"Флешка","критически важные характеристики позиции отсутствуют","Канцелярские принадлежности",1,"шт",1]
[17,"Пластиковые  папки конверты на каждого участника","критически важные характеристики позиции отсутствуют","Канцелярские принадлежности",1,"шт",5]
[18,"Сигнальная лента","критически важные характеристики позиции отсутствуют","Канцелярские принадлежности",1,"шт",1]
["Охрана труда и техника безопасности"]
["№","Наименование ","Краткие (рамочные) технические характеристики","Вид","Количество","Единица измерения","Итоговое количество","Рекомендации представителей индустрии (указывается конкретное оборудование)"]
[1,"Респиратор/маска","критически важные характеристики позиции отсутствуют","Охрана труда",1,"шт",5]

{"sheet":"Лист3","index":4,"n_rows":0,"n_cols":0,"rows_kept":0}

{"sheet":"Лист2","index":5,"n_rows":0,"n_cols":0,"rows_kept":0}

{"sheet":"Лист1","index":6,"n_rows":0,"n_cols":0,"rows_kept":0}

{"sheet":"Личный инструмент конкурсанта","index":7,"n_rows":13,"n_cols":7,"rows_kept":13,"merged":[[0,0,0,6],[1,0,1,6],[2,0,2,6],[3,0,3,6],[4,0,4,6],[5,0,5,6]]}
["ПРОЕКТ"]
["Инфраструктурный лист для оснащения конкурсной площадки"]
[{"$f":"'Информация о Чемпионате'!B4","v":"Региональный чемпионата по профессиональному мастерству \"Профессионалы\" в  2026 г."}]
["по компетенции"]
[{"$f":"'Информация о Чемпионате'!B3","v":"Хлебопечение"}]
["Личный инструмент конкурсанта"]
["№","Наименование ","Краткие (рамочные) технические характеристики","Вид","Количество","Единица измерения","Примечание "]
[1,"Перчатки для выкладки готовых изделий","Критически важные характеристики позиции отсутствуют","Расходные материалы",5,"шт"]
[2]
[3]
[4]
[5]
[6]